Cogmind - Beta 16 @@@ ROGUE MODE // 2025.10.25 @ 19:32:11 Player: The Gourd Result: Destroyed by G-67 Veteran with Plasma Rifle Performance ------------- Evolutions (7) 3500 Regions Visited (17) 3400 Robots Destroyed (382) 1910 Value Destroyed (11205) 11205 Prototype IDs (41) 820 Alien Tech Used (0) 0 Bonus (61) 61 TOTAL SCORE: 20896 Bonus ------- Triggered High Security 500 High Alert Combat Kills 2893 Follower Combat Kills 272 Entered Garrisons 200 Aligned with FarCom 300 Friendly Fire -4104 Cogmind --------- Core Integrity 0/1300 Matter 221/300 Energy 27/100 System Corruption 0% Temperature Cool (39) Movement Core (50) Location -3/Garrison Parts ------- > --- POWER (2) -------- (None) > --- PROPULSION (7) --- (None) > --- UTILITY (8) ------ Improved Target Analyzer > --- WEAPON (4) ------- (None) > --- INVENTORY (5) ---- Linear Gravjet Micro-nuke Launcher Improved Plasma Cutter Peak State ------------ > --- POWER ------------ Light Fission Core Micro Fission Core > --- PROPULSION ------- Gravmag Array Gravmag Array Antigrav System Combat Linear Gravjet Cooled Impulse Thruster > --- UTILITY ---------- Advanced Sensor Array Advanced Signal Interpreter Improved Target Analyzer Point Defense System Hacking Suite System Shield Improved System Shield Improved Field Recycling Unit > --- WEAPON ----------- Compact HERF Cannon Thunder Hammer > --- INVENTORY -------- Linear Gravjet Improved Surge Thruster Q-thruster Micro-nuke Launcher Improved Plasma Cutter [Rating: 109] Favorites ----------- Power Antimatter Reactor Engine Heavy Ion Engine Power Core Light Fission Core Reactor Antimatter Reactor Propulsion Light Treads Treads Light Treads Wheel Armored Huge Wheel Hover Unit Gravmag Array Flight Unit Nuclear Pulse Thruster Utility Huge Storage Unit Device Cooling System Storage Huge Storage Unit Processor Improved Target Analyzer Hackware Improved System Shield Protection Heavy Armor Plating Weapon Spread Laser Energy Gun Spread Laser Energy Cannon Compact HERF Cannon Ballistic Gun XL Autogun Array Ballistic Cannon Mini Assault Cannon Launcher Rocket Array Special Weapon Mining Laser Impact Weapon Thunder Hammer Slashing Weapon Chainsword Build | -11 -10 -10 -9 -9 -9 -8 -8 -7 -7 -7 -6 -5 -5 -5 -4 -3 -3 ------- Run | Yrd Mat Min Mat Min Exi Min Mat Fac Was Fac Fac Fac Was Fac Fac Res Gar Slots Evolved 14 | . . . 2 . . . 2 2 . . 2 2 . . 2 2 . Power 1 | . . . . . . . . . . . . 1 . . . . . Propulsion 5 | . . . . . . . 1 1 . . 1 1 . . 1 . . Utility 6 | . . . 1 . . . . 1 . . 1 . . . 1 2 . Weapon 2 | . . . 1 . . . 1 . . . . . . . . . . Parts Attached 160 | 7 18 3 19 2 12 1 19 4 5 10 28 11 3 6 4 6 2 Power 19 | 1 2 2 2 . 1 . 5 2 1 . 2 . . . . 1 . Engine 12 | 1 2 2 2 . . . 3 2 . . . . . . . . . Core 5 | . . . . . 1 . 2 . . . 1 . . . . 1 . Reactor 2 | . . . . . . . . . 1 . 1 . . . . . . Propulsion 46 | 2 4 . 7 . 4 . 7 1 2 1 4 3 2 4 1 2 2 Treads 22 | 1 3 . 7 . 4 . 4 1 2 . . . . . . . . Leg . | . . . . . . . . . . . . . . . . . . Wheel 9 | 1 1 . . . . . 3 . . 1 3 . . . . . . Hover 11 | . . . . . . . . . . . . 3 2 4 1 1 . Flight 4 | . . . . . . . . . . . 1 . . . . 1 2 Utility 47 | 2 3 . 6 . 4 1 5 1 2 3 7 6 1 2 2 2 . Device 17 | 1 1 . 3 . 1 1 1 . 1 1 2 1 1 1 1 1 . Storage 6 | 1 1 . 1 . 1 . 2 . . . . . . . . . . Processor 3 | . . . . . . . . . . . . 2 . . . 1 . Hackware 6 | . . . . . . . . . . 2 . 2 . 1 1 . . Protection 15 | . 1 . 2 . 2 . 2 1 1 . 5 1 . . . . . Artifact . | . . . . . . . . . . . . . . . . . . Weapon 48 | 2 9 1 4 2 3 . 2 . . 6 15 2 . . 1 1 . Energy Gun 11 | . 3 1 3 2 2 . . . . . . . . . . . . Energy Cannon 4 | . 2 . . . 1 . . . . . . . . . . 1 . Ballistic Gun 14 | 2 1 . 1 . . . 2 . . 4 4 . . . . . . Ballistic Cannon 3 | . . . . . . . . . . . 3 . . . . . . Launcher 12 | . 2 . . . . . . . . 2 8 . . . . . . Special Weapon 1 | . 1 . . . . . . . . . . . . . . . . Impact Weapon 2 | . . . . . . . . . . . . 1 . . 1 . . Slashing Weapon 1 | . . . . . . . . . . . . 1 . . . . . Piercing Weapon . | . . . . . . . . . . . . . . . . . . Special Melee Weapon . | . . . . . . . . . . . . . . . . . . Unidentified Prototypes 18 | . 1 . 4 . . . 1 1 . 2 4 2 1 . 1 1 . Parts Lost 60 | . 2 . 1 . 10 . . . . 2 26 4 . . . . 15 Power 5 | . 1 . . . . . . . . . 2 . . . . . 2 Propulsion 22 | . . . . . 5 . . . . . 8 2 . . . . 7 Utility 19 | . 1 . 1 . 3 . . . . 2 5 2 . . . . 5 Weapon 14 | . . . . . 2 . . . . . 11 . . . . . 1 Highest Loss Streak 15 | . 1 . 1 . 6 . . . . 1 3 2 . . . . 15 To Critical Strikes 1 | . . . . . 1 . . . . . . . . . . . . Average Backups 12 | 3 12 14 14 14 9 8 15 20 15 11 14 4 5 5 5 4 4 Power . | . 1 1 1 1 1 1 1 1 . 1 . . . . . . . Propulsion 3 | 1 4 5 5 5 2 1 4 7 4 2 1 . . . 2 2 2 Utility 3 | . 1 1 2 3 2 . 6 8 7 6 5 . 1 . 1 . . Weapon 4 | . 4 6 5 3 3 4 2 1 1 2 7 2 3 3 1 1 1 Tool/Special . | . . . . . . . . . . . . . . . . . . Unused Backups 54 | 2 3 2 4 . . . 21 1 13 3 2 1 1 . . . 1 Power 8 | . 1 . 1 . . . 3 . 2 . . . 1 . . . . Propulsion 11 | . . . 1 . . . 7 . 3 . . . . . . . . Utility 22 | 2 1 . 2 . . . 7 1 7 1 . 1 . . . . . Weapon 11 | . 1 2 . . . . 4 . . 2 2 . . . . . . Tool/Special 2 | . . . . . . . . . 1 . . . . . . . 1 Average Slot Usage (%) 71 | . 98 100 99 99 83 81 55 60 54 52 54 25 60 73 71 68 62 Engine 4 | . 13 14 10 11 5 . 3 7 . . . . . . . . . Core 1 | . . . . . 5 11 5 . . . 1 . 5 5 5 8 5 Reactor 2 | . . . . . . . . . 6 7 4 . . . . . . Treads 12 | . 23 28 22 22 21 22 9 15 15 12 1 . . . . . . Wheel 3 | . 4 . . . . . 9 7 1 2 7 . . . . . . Hover 1 | . . . . . . . . . . . . 6 18 27 26 21 17 Device 4 | . 6 . 10 11 7 4 2 . 6 . 1 2 . 5 8 10 10 Storage 8 | . 14 14 11 11 11 11 9 7 7 7 5 . . . . . . Hackware 1 | . . . . . . . . . . . . 9 5 9 13 14 11 Protection 8 | . 7 14 10 11 10 11 8 14 8 13 4 . 5 5 1 . . Energy Gun 9 | . 6 28 32 32 19 22 . . . . . . . . . . . Ballistic Gun 6 | . 20 . . . . . 8 7 7 6 12 . . . . . . Launcher 1 | . . . . . . . . . . . 7 . 5 5 5 . . Peak Build Rating 109 | 7 12 13 21 24 39 21 63 72 91 91 91 51 76 82 88 109 106 Average Rating 48 | 5 8 12 18 23 22 20 58 70 87 87 62 24 61 75 85 90 83 On Entrance 46 | . 7 11 13 21 24 19 21 63 72 91 67 25 51 76 76 88 106 Avg Prop Armor Cover (%) 7 | 15 12 . . . . . 4 8 8 7 3 . 2 4 9 12 . Naked Turns 17 | . . . . . . . . . . . . 17 . . . . . Heaviest Build 167 | 11 36 34 47 49 83 60 119 131 136 136 167 24 29 36 38 40 38 Greatest Support 140 | 16 40 40 43 43 43 40 28 28 140 140 140 39 41 68 60 74 74 Greatest Overweight (x) 36 | . 1 . 1 1 3 1 6 4 4 4 36 2 . . . . . Average Overweight (x) 1 | . . . . . 1 1 2 4 . 1 3 . . . . . . Largest Inventory Capacity 25 | 8 15 15 15 15 20 20 25 25 25 25 25 5 5 5 5 5 5 Average Capacity 18 | 7 13 15 15 15 18 20 20 25 25 25 24 5 5 5 5 5 5 Most Carried 25 | 7 15 15 15 15 16 16 24 25 25 25 25 5 5 5 5 5 5 Average Carried 16 | 3 12 14 14 14 11 12 19 24 24 24 21 4 5 4 5 4 4 Final Capacity 25 | 8 15 15 15 15 20 20 25 25 25 25 5 5 5 5 5 5 5 Final Carried 25 | 5 15 15 15 14 9 16 24 25 25 25 3 5 5 5 5 5 3 Class Distribution -------------------- 48% | Tank 22% | Mutant 13% | Scavenger-Tank 8% | Hacker-Mutant 6% | Gunner Dominant Class ---------------- Mutant | -10/Materials Mutant | -10/Mines Tank | -9/Materials Tank | -9/Mines Tank | -9/Exiles Mutant | -8/Mines Tank | -8/Materials Tank | -7/Factory Scavenger-Tank | -7/Waste Tank | -7/Factory Scavenger-Tank | -6/Factory Hacker-Mutant | -5/Factory Hacker-Mutant | -5/Waste Hacker-Mutant | -5/Factory Hacker-Mutant | -4/Factory Hacker-Mutant | -3/Research Hacker-Mutant | -3/Garrison Resources | -11 -10 -10 -9 -9 -9 -8 -8 -7 -7 -7 -6 -5 -5 -5 -4 -3 -3 ----------- Run | Yrd Mat Min Mat Min Exi Min Mat Fac Was Fac Fac Fac Was Fac Fac Res Gar Matter Collected 11577 | 294 579 80 341 43 50 222 1577 160 1771 1141 5219 . . 41 46 10 3 Remotely 1690 | . . . . . . . . . . . 1690 . . . . . . Salvage Created 15849 | 206 940 129 953 221 31 222 1927 162 2486 1528 6709 148 . 86 101 . . Parts 766 | 23 40 7 66 15 . 16 123 11 62 87 290 10 . 9 7 . . Haulers Intercepted 21 | . 2 . 6 . . . 6 . . 3 4 . . . . . . Recyclers Shooed 24 | . 3 1 . . . 2 . . . 2 16 . . . . . . Parts Field Recycled 20 | . . . . . . . . . . . . . . 13 7 . . Retrieved Matter 528 | . . . . . . . . . . . . . . 304 224 . . Parts Self-Destructed . | . . . . . . . . . . . . . . . . . . Prevented . | . . . . . . . . . . . . . . . . . . Parts Restored 1 | . . . . . . . . . . 1 . . . . . . . Broken 1 | . . . . . . . . . . 1 . . . . . . . Kills | -11 -10 -10 -9 -9 -9 -8 -8 -7 -7 -7 -6 -5 -5 -5 -4 -3 -3 ------- Run | Yrd Mat Min Mat Min Exi Min Mat Fac Was Fac Fac Fac Was Fac Fac Res Gar Combat Hostiles Destroyed 228 | . 16 2 25 9 3 . 28 2 6 25 95 8 . 8 1 . . Melee 2 | . . . . . . . . . . . 2 . . . . . . Guns 125 | . 13 1 25 9 . . 28 2 6 14 27 . . . . . . Cannons 11 | . . . . . . . . . . . 11 . . . . . . AOE 82 | . 3 1 . . 3 . . . . 11 48 8 . 8 . . . Classes Destroyed 22 | 2 3 1 3 1 1 . 3 1 3 . 4 . . . . . . Worker 24 | . . . 2 . . . 1 1 . 4 15 . . 1 . . . Builder 28 | . . 1 . . . 1 2 . . 2 22 . . . . . . Tunneler 10 | 5 . . 1 . . 2 . . . . 2 . . . . . . Hauler 21 | . 2 . 6 . . . 6 . . 3 4 . . . . . . Recycler 26 | 1 3 1 1 . . 2 2 . . 4 12 . . . . . . Mechanic 5 | . . . . . . . . . . . 5 . . . . . . Operator 6 | . . . . . . . 2 1 . 2 . . . . 1 . . Watcher 17 | . 3 . 1 . . . 5 . . 2 6 . . . . . . Swarmer 44 | . . . 14 4 . . 6 . . 2 6 4 . 8 . . . Cutter 1 | . . . . . . . . . . . 1 . . . . . . Saboteur 2 | . . . . . . . . . . . 2 . . . . . . Grunt 103 | . 16 2 6 3 . . 10 . . 10 52 4 . . . . . Brawler 6 | . . . . . . . 1 . . . 5 . . . . . . Duelist 5 | . . . . 2 . . . . . 1 2 . . . . . . Protector 1 | . . . . . . . . . . . 1 . . . . . . Sentry 27 | . . . 6 . . . 8 1 . 6 5 . . . 1 . . Specialist 2 | . . . . . . . . . . . 2 . . . . . . Hunter 17 | . . . . . . . 3 . . 2 12 . . . . . . Programmer 13 | . . . . . . . . 1 . 4 8 . . . . . . Compactor 6 | . . . . . . . . . 6 . . . . . . . . Assembled 2 | . . . . . 2 . . . . . . . . . . . . Surgeon 2 | . . . . . . . . . 2 . . . . . . . . Wasp 6 | . . . . . . . . . 6 . . . . . . . . Thug 7 | . . . . . . . . . 6 1 . . . . . . . Butcher 2 | . . . . . . . . . 2 . . . . . . . . Martyr 2 | . . . . . . . . . 2 . . . . . . . . Best Kill Streak 21 | 5 3 2 5 4 2 2 7 2 3 21 11 8 . 5 1 . . Combat Bots Only 11 | . 3 2 4 4 2 . 5 1 3 11 6 8 . 5 1 . . Max Kills in Single Turn 6 | 1 1 1 2 2 2 1 4 2 2 3 6 5 . 3 1 . . Gunslinging 1 | . . . 1 1 . . . . . . . . . . . . . Exploded 5 | . 1 1 . . 2 . . . . 2 2 5 . 3 . . . Melee 1 | . . . . . . . . . . . 1 . . . . . . Uniques/NPCs Destroyed 1 | . . . . . 1 . . . . . . . . . . . . 8R-AWN (-9/Exiles) Combat | -11 -10 -10 -9 -9 -9 -8 -8 -7 -7 -7 -6 -5 -5 -5 -4 -3 -3 -------- Run | Yrd Mat Min Mat Min Exi Min Mat Fac Was Fac Fac Fac Was Fac Fac Res Gar Hostile Shots Fired 1401 | . 83 4 59 22 85 . 40 11 . 194 601 53 . 20 37 28 164 Missed 436 | . 23 . 16 8 18 . 11 4 . 73 177 25 . 3 16 18 44 Hits 965 | . 60 4 43 14 67 . 29 7 . 121 424 28 . 17 21 10 120 Melee 14 | . . . . 3 1 . . . . . 10 . . . . . . Projectile 951 | . 60 4 43 11 66 . 29 7 . 121 414 28 . 17 21 10 120 AOE 3 | . . . . . . . . . . 1 2 . . . . . . Critical Strikes 48 | . . . 2 . 15 . 3 . . 4 21 2 . . . . 1 Damage Taken 16854 | . 741 60 448 210 2205 . 355 65 . 1793 6992 491 . 293 504 171 2526 Core 2939 | . 184 . 43 12 228 . 43 16 . 114 525 289 . 62 109 . 1314 Absorbed by Shields 5 | . . . . . . . . . . . . . . . . . 5 Ignored by Resistances 673 | . . . . . . . . 5 . 50 618 . . . . . . Regen/Repaired (Parts) 911 | . 100 . 42 . . . . . . 88 . 203 . 100 . 378 . Core Remaining (%) 65 | 100 . 26 . . . 29 92 . . 81 38 . . 64 90 . . Volleys Fired 798 | 12 97 7 46 13 27 12 78 6 85 78 330 2 . 5 . . . Largest 4 | 2 2 2 3 3 3 2 1 1 1 1 4 1 . 1 . . . Hottest 313 | 40 130 130 195 203 313 126 60 60 60 60 144 49 . 49 . . . Shots Fired 1389 | 24 184 12 137 38 39 26 78 6 85 78 675 2 . 5 . . . Gun 1134 | 24 177 10 136 38 16 26 78 6 85 63 475 . . . . . . Cannon 113 | . . . . . 19 . . . . . 94 . . . . . . Launcher 141 | . 6 2 1 . 4 . . . . 15 106 2 . 5 . . . Special 1 | . 1 . . . . . . . . . . . . . . . . Kinetic 974 | 24 149 . . . . . 78 6 85 63 569 . . . . . . Thermal 274 | . 29 10 136 38 35 26 . . . . . . . . . . . Explosive 86 | . 6 2 1 . 4 . . . . 15 51 2 . 5 . . . Electromagnetic 55 | . . . . . . . . . . . 55 . . . . . . Robot Hit Streak 24 | 7 11 6 18 10 4 7 10 4 24 18 21 . . 2 . . . Robot Miss Streak 20 | 2 6 3 10 6 4 3 5 2 4 8 20 1 . . . . . Penetration Max . | . . . . . . . . . . . . . . . . . . Secondary Targets 13 | . 2 . 3 2 . . . . . . 6 . . . . . . Max Gunslinging Chain 2 | . 1 . 2 1 . . . . . . 1 . . . . . . Shots Hit Robots 975 | 17 106 10 105 32 28 17 70 5 84 58 437 . . 3 2 1 . Core Hits 934 | 12 72 15 144 27 23 5 61 6 59 70 414 15 . 10 1 . . Critical Kills 1 | . . . . . . . . . . . . . . . 1 . . Critical Parts Destroyed 1 | . . . . . . . . . . . . . . . 1 . . Critical Strikes 8 | . . . . 1 . 1 . . . . 4 . . . 2 . . Burn 2 | . . . . 1 . 1 . . . . . . . . . . . Blast 4 | . . . . . . . . . . . 4 . . . . . . Smash 2 | . . . . . . . . . . . . . . . 2 . . Melee Attacks 7 | . . . . . . . . . . . . . . 1 5 1 . Impact 6 | . . . . . . . . . . . . . . . 5 1 . Slashing 1 | . . . . . . . . . . . . . . 1 . . . Piercing . | . . . . . . . . . . . . . . . . . . Sneak Attacks 2 | . . . . . . . . . . . . . . 1 . 1 . Combat Hostiles . | . . . . . . . . . . . . . . . . . . Follow-up Attacks . | . . . . . . . . . . . . . . . . . . Damage Inflicted 43136 | 138 1463 252 1426 432 717 270 3460 316 6560 5683 20166 948 . 1091 70 140 4 Guns 23709 | 138 1225 105 1426 432 133 270 3457 316 6560 3179 6468 . . . . . . Cannons 1682 | . . . . . 101 . . . . . 1581 . . . . . . Explosions 17312 | . 238 147 . . 483 . . . . 2500 11981 948 . 1015 . . . Melee 286 | . . . . . . . . . . . . . . 76 70 140 . Ramming 147 | . . . . . . . 3 . . 4 136 . . . . . 4 Kinetic 22597 | 138 898 . . . . . 3457 316 6560 3179 8049 . . . . . . Thermal 3598 | . 327 105 1426 432 622 270 . . . . 416 . . . . . . Explosive 12501 | . 238 147 . . 95 . . . . 2500 7570 948 . 1003 . . . Electromagnetic 4007 | . . . . . . . . . . . 3995 . . 12 . . . Impact 210 | . . . . . . . . . . . . . . . 70 140 . Slashing 76 | . . . . . . . . . . . . . . 76 . . . Piercing . | . . . . . . . . . . . . . . . . . . Highest Corruption 3 | . . . 3 3 3 3 . 1 1 2 3 . . . . . . Average Corruption 2 | . . . 2 3 3 3 . 1 1 1 2 . . . . . . Corruption Purged . | . . . . . . . . . . . . . . . . . . Corruption Blocked . | . . . . . . . . . . . . . . . . . . Effects 134 | . . . 29 19 28 5 . 2 4 21 26 . . . . . . Message Errors 29 | . . . 6 5 7 1 . 1 . 5 4 . . . . . . Matter Fused 31 | . . . 5 4 8 2 . . 1 4 7 . . . . . . Heat Flow Errors 21 | . . . 4 3 3 . . . 1 6 4 . . . . . . Energy Discharges 18 | . . . 5 2 2 . . 1 1 3 4 . . . . . . Parts Rejected 1 | . . . . . . . . . . . 1 . . . . . . Parts Fused 2 | . . . 1 . . . . . . 1 . . . . . . . Data Loss (minor) 16 | . . . 4 2 3 . . . 1 1 5 . . . . . . Data Loss (major) 5 | . . . 1 1 1 . . . . 1 1 . . . . . . Misfires 6 | . . . 1 1 2 2 . . . . . . . . . . . Alerts 4 | . . . 2 1 1 . . . . . . . . . . . . Weapon Failures 1 | . . . . . 1 . . . . . . . . . . . . Overload Shots . | . . . . . . . . . . . . . . . . . . Overflow Damage 752 | . . . . . . . . . . 119 447 63 . 97 26 . . Projectiles 49 | . . . . . . . . . . . 49 . . . . . . Explosions 677 | . . . . . . . . . . 119 398 63 . 97 . . . Melee 26 | . . . . . . . . . . . . . . . 26 . . Knockbacks 24 | . . . . . . . . . . . 23 . . . . 1 . Impact 3 | . . . . . . . . . . . 2 . . . . 1 . Kinetic 21 | . . . . . . . . . . . 21 . . . . . . Secondary . | . . . . . . . . . . . . . . . . . . Self-Inflicted Damage 668 | . . . 15 . . . 1 . . 210 394 . . 46 . . 2 Shots 29 | . . . 1 . . . . . . 4 23 . . 1 . . . Rammed 22 | . . . . . . . 1 . . 1 19 . . . . . 1 Targets Rammed 23 | . . . . . . . 1 . . 1 20 . . . . . 1 Kicked . | . . . . . . . . . . . . . . . . . . Crushed 1 | . . . . . . . . . . . 1 . . . . . . Highest Temperature 481 | . 336 171 453 363 430 195 252 88 440 368 481 . . 117 . 13 22 Average Temperature 103 | . 76 72 120 153 211 79 71 39 155 105 97 . . 37 . 5 6 Received Heat Transfer 3789 | . 414 33 78 42 . . 63 12 . 741 1857 144 . 9 102 9 285 Effects 40 | . 4 . . 2 8 . . . 4 3 19 . . . . . . Shutdowns 4 | . . . . . 2 . . . . 1 1 . . . . . . Energy Bleed 9 | . 2 . . . . . . . 1 2 4 . . . . . . Interference 13 | . 2 . . . 1 . . . 1 . 9 . . . . . . Matter Decay 2 | . . . . . 1 . . . 1 . . . . . . . . Short Circuit 9 | . . . . 2 4 . . . 1 . 2 . . . . . . Damage (minor) 3 | . . . . . . . . . . . 3 . . . . . . Siege Activations 4 | . . . . . . . . . 2 1 1 . . . . . . Total Turns 29 | . . . . . . . . . 14 2 13 . . . . . . Longest Duration 13 | . . . . . . . . . 7 2 13 . . . . . . Martial Activations . | . . . . . . . . . . . . . . . . . . Shielding Activations . | . . . . . . . . . . . . . . . . . . Robots Disrupted 1 | . . . . . . . . . . . . . . 1 . . . Combat Hostiles 1 | . . . . . . . . . . . . . . 1 . . . Robots Corrupted 9 | . . . . . . . . . . . 8 . . . 1 . . Combat Hostiles 8 | . . . . . . . . . . . 7 . . . 1 . . Parts Fried 20 | . . . . . . . . . . . 19 . . . 1 . . Impact Corruptions 1 | . . . . . . . . . . . . . . . 1 . . Robots Melted . | . . . . . . . . . . . . . . . . . . Combat Hostiles . | . . . . . . . . . . . . . . . . . . Parts Melted 9 | . . . 4 1 . 1 . . . 2 1 . . . . . . Heat Transferred 6126 | . 410 140 1785 691 1984 666 . . . . 450 . . . . . . Parts Sabotaged . | . . . . . . . . . . . . . . . . . . Parts Stolen . | . . . . . . . . . . . . . . . . . . Parts Stripped . | . . . . . . . . . . . . . . . . . . Power Chain Reactions 13 | . . . . . . . . . . . 13 . . . . . . Alert | -11 -10 -10 -9 -9 -9 -8 -8 -7 -7 -7 -6 -5 -5 -5 -4 -3 -3 ------- Run | Yrd Mat Min Mat Min Exi Min Mat Fac Was Fac Fac Fac Was Fac Fac Res Gar Maximum Alert Level 5 | . . . 1 . . . 2 . . 2 5 4 1 2 1 . . Low Security (%) 65 | 100 100 100 78 100 . 100 60 100 100 96 9 . . 38 99 100 100 Level 1 13 | . . . 21 . . . 36 . . . 21 . 100 46 . . . Level 2 6 | . . . . . . . 3 . . 3 20 2 . 14 . . . Level 3 5 | . . . . . . . . . . . 13 78 . . . . . Level 4 4 | . . . . . . . . . . . 15 18 . . . . . Level 5 3 | . . . . . . . . . . . 14 . . . . . . High Security 1 | . . . . . . . . . . . 5 . . . . . . Max Security . | . . . . . . . . . . . . . . . . . . Peak Influence 2427 | 10 167 71 261 131 . 5 415 187 6 627 2427 1183 379 433 217 63 101 Initial 1183 | . . 51 . 81 . . . 187 6 . 298 1183 379 251 186 63 21 Average 310 | 2 66 11 122 56 . 1 175 85 . 60 891 877 371 238 125 11 37 Influence Increases 8832 | 30 632 81 973 210 . 25 1018 102 4 1172 3149 520 . 489 265 52 110 Destroy 0b10 Robot/C 4520 | . 320 40 580 180 . . 560 40 . 500 1960 160 . 160 20 . . Destroy 0b10 Robot/NC 705 | 30 40 10 70 . . 25 90 10 . 85 335 . . 5 5 . . Destroy Leader 1110 | . 100 10 158 30 . . 182 20 . 170 390 20 . 20 10 . . Allied During Kill 50 | . . . 36 . . . . . . . 14 . . . . . . Successful Hack 265 | . 33 . 16 . . . 17 . . 75 24 44 . 33 16 7 . Select Force Hacks 90 | . 60 . 30 . . . . . . . . . . . . . . Disable Machine 510 | . . 15 45 . . . 60 30 . 165 45 45 . 105 . . . Anti-Garrison Action 50 | . . . . . . . . . . . . . . . . . 50 Destroy Structure 857 | . 34 6 8 . . . 79 2 4 162 336 86 . 136 4 . . Partial Spotted 30 | . . . . . . . . . . 15 . 15 . . . . . Lose Combat Pursuer 645 | . 45 . 30 . . . 30 . . . 45 150 . 30 210 45 60 Influence Decreases 8832 | 30 500 213 764 419 . 25 605 496 23 561 1343 1852 726 468 524 144 139 Entered New Map 3069 | . . 81 . 128 . . . 226 13 . 313 1234 706 108 194 58 8 Time Decay 4244 | 30 480 132 594 291 . 25 497 270 10 391 770 278 20 190 180 86 . Lost Part 471 | . 20 . . . . . . . . 20 260 40 . . . . 131 Lost Ally 40 | . . . 20 . . . . . . . . . . 20 . . . Purge Threat 1008 | . . . 150 . . . 108 . . 150 . 300 . 150 150 . . Squads Dispatched 88 | . 6 1 3 . . . 7 5 . 12 39 9 . 2 2 2 . Investigation 16 | . 4 1 3 . . . 1 . . 2 1 4 . . . . . Extermination 19 | . . . . . . . . 2 . 5 8 1 . . 2 1 . Reinforcement 28 | . 2 . . . . . 2 . . 3 18 2 . . . 1 . Assault 17 | . . . . . . . 1 . . . 12 2 . 2 . . . Garrison 8 | . . . . . . . 3 3 . 2 . . . . . . . Intercept . | . . . . . . . . . . . . . . . . . . Searches Triggered . | . . . . . . . . . . . . . . . . . . Construction Impeded 15 | . . . . . . . 1 . . 1 13 . . . . . . Haulers Reinforced 3 | . . . . . . . . . . . 3 . . . . . . Active Scanning Responses . | . . . . . . . . . . . . . . . . . . Cargo Convoy Interrupts . | . . . . . . . . . . . . . . . . . . Stealth | -11 -10 -10 -9 -9 -9 -8 -8 -7 -7 -7 -6 -5 -5 -5 -4 -3 -3 --------- Run | Yrd Mat Min Mat Min Exi Min Mat Fac Was Fac Fac Fac Was Fac Fac Res Gar Distress Signals 23 | . 2 . 3 . . . 2 . . . 14 . . 1 . 1 . Communications Jammed . | . . . . . . . . . . . . . . . . . . Distress Signals . | . . . . . . . . . . . . . . . . . . Times Spotted 441 | . 34 2 44 9 10 . 40 3 6 36 174 21 6 10 20 7 19 Peak Tracking Total 15 | . 6 2 5 4 10 . 6 1 3 7 11 9 6 5 10 7 15 Tactical Retreats 24 | . 1 . 2 . 3 . 1 . . . 3 4 . 1 6 2 1 Traps | -11 -10 -10 -9 -9 -9 -8 -8 -7 -7 -7 -6 -5 -5 -5 -4 -3 -3 ------- Run | Yrd Mat Min Mat Min Exi Min Mat Fac Was Fac Fac Fac Was Fac Fac Res Gar Traps Triggered 19 | . 2 . 1 . . . 1 3 . 1 5 1 . 1 1 1 2 Indirectly 4 | . . . . . . . . . . . 4 . . . . . . Trap Hack Attempts . | . . . . . . . . . . . . . . . . . . Triggered . | . . . . . . . . . . . . . . . . . . Disarmed . | . . . . . . . . . . . . . . . . . . Reprogrammed . | . . . . . . . . . . . . . . . . . . Reused . | . . . . . . . . . . . . . . . . . . Traps Extracted . | . . . . . . . . . . . . . . . . . . Installed . | . . . . . . . . . . . . . . . . . . Triggered . | . . . . . . . . . . . . . . . . . . Machines | -11 -10 -10 -9 -9 -9 -8 -8 -7 -7 -7 -6 -5 -5 -5 -4 -3 -3 ---------- Run | Yrd Mat Min Mat Min Exi Min Mat Fac Was Fac Fac Fac Was Fac Fac Res Gar Machines Disabled 44 | . . 1 3 . 10 . 4 2 . 11 3 3 . 7 . . . Max in Single Turn 7 | . . 1 2 . 3 . 1 1 . 4 1 2 . 7 . . . Garrison Access 1 | . . . . . . . . . . . . . . 1 . . . Machines Repaired . | . . . . . . . . . . . . . . . . . . Machines Dismantled . | . . . . . . . . . . . . . . . . . . Machines Sabotaged . | . . . . . . . . . . . . . . . . . . Overloaded Fab Kills . | . . . . . . . . . . . . . . . . . . Hacking | -11 -10 -10 -9 -9 -9 -8 -8 -7 -7 -7 -6 -5 -5 -5 -4 -3 -3 --------- Run | Yrd Mat Min Mat Min Exi Min Mat Fac Was Fac Fac Fac Was Fac Fac Res Gar Machines Accessed 86 | . 9 1 14 . 1 . 9 1 . 16 5 11 . 8 6 4 1 Terminals 47 | . 6 . 11 . . . 7 . . 8 2 5 . 1 5 1 1 Fabricators 12 | . . . . . . . . . . 3 2 4 . 2 1 . . Repair Stations 13 | . 1 . 2 . . . 1 . . 2 . 1 . 4 . 2 . Recycling Units 5 | . 2 . 1 . . . . . . . 1 1 . . . . . Scanalyzers 2 | . . . . . . . . . . 2 . . . . . . . Garrison Access 5 | . . . . . . . 1 1 . 1 . . . 1 . 1 . Total Hacks 246 | . 24 1 40 . 1 . 22 1 . 39 12 41 . 23 15 21 6 Successful 122 | . 16 1 21 . 1 . 7 . . 17 5 24 . 8 8 14 . Failed 124 | . 8 . 19 . . . 15 1 . 22 7 17 . 15 7 7 6 Catastrophic 25 | . 1 . 3 . . . 1 1 . 5 1 5 . 3 3 2 . Database Lockouts . | . . . . . . . . . . . . . . . . . . Manual 118 | . 19 . 34 . 1 . 16 . . 20 2 17 . . 8 1 . Terminals 128 | . 17 . 33 . . . 16 . . 21 3 17 . 2 12 1 6 Fabricators 37 | . . . . . . . . . . 6 8 17 . 3 3 . . Repair Stations 62 | . 4 . 6 . . . 3 . . 7 . 6 . 17 . 19 . Recycling Units 6 | . 3 . 1 . . . . . . . 1 1 . . . . . Scanalyzers 4 | . . . . . . . . . . 4 . . . . . . . Garrison Access 7 | . . . . . . . 3 1 . 1 . . . 1 . 1 . Terminal Hacks 17 | . 2 1 2 . 1 . 2 . . 2 . 2 . 1 4 . . Record 1 | . . . . . . . . . . . . . . . 1 . . Open Door 1 | . . 1 . . . . . . . . . . . . . . . Open DSF 1 | . . . . . . . . . . . . . . . 1 . . Level Access Points 1 | . . . . . . . . . . . . . . . 1 . . Terminal Index 2 | . 1 . 1 . . . . . . . . . . . . . . Unreport Threat 7 | . . . 1 . . . 1 . . 1 . 2 . 1 1 . . Recall Investigation 1 | . 1 . . . . . . . . . . . . . . . . Recall Reinforcements 1 | . . . . . . . . . . 1 . . . . . . . Hauler Manifests 1 | . . . . . . . 1 . . . . . . . . . . Proto ID Catalog 1 | . . . . . 1 . . . . . . . . . . . . Fabricator Hacks 19 | . . . . . . . . . . 2 2 10 . 2 3 . . Network Status 5 | . . . . . . . . . . . . 2 . 1 2 . . Load Schematic 8 | . . . . . . . . . . 1 2 4 . . 1 . . Build 6 | . . . . . . . . . . 1 . 4 . 1 . . . Repair Station Hacks 35 | . 3 . 5 . . . 1 . . 3 . 6 . 4 . 13 . Scan Component 21 | . 2 . 3 . . . 1 . . 2 . 3 . 3 . 7 . Repair 14 | . 1 . 2 . . . . . . 1 . 3 . 1 . 6 . Recycling Unit Hacks 3 | . 1 . . . . . . . . . 1 1 . . . . . Report Inventory 3 | . 1 . . . . . . . . . 1 1 . . . . . Scanalyzer 3 | . . . . . . . . . . 3 . . . . . . . Insert Component 2 | . . . . . . . . . . 2 . . . . . . . Analyze 1 | . . . . . . . . . . 1 . . . . . . . Garrison Access Hacks 2 | . . . . . . . . . . . . . . 1 . 1 . Unlock Access 1 | . . . . . . . . . . . . . . . . 1 . Seal Access 1 | . . . . . . . . . . . . . . 1 . . . Unauthorized Hacks 43 | . 10 . 14 . . . 4 . . 7 2 5 . . 1 . . Terminals 38 | . 8 . 13 . . . 4 . . 6 2 4 . . 1 . . Botnet 21 | . 2 . 5 . . . 4 . . 3 2 4 . . 1 . . Operators 3 | . 1 . 1 . . . . . . 1 . . . . . . . Skim 14 | . 5 . 7 . . . . . . 2 . . . . . . . Fabricators 2 | . . . . . . . . . . 1 . 1 . . . . . Fabnet 2 | . . . . . . . . . . 1 . 1 . . . . . Repair Stations . | . . . . . . . . . . . . . . . . . . Recycling Units 3 | . 2 . 1 . . . . . . . . . . . . . . Tunnel 3 | . 2 . 1 . . . . . . . . . . . . . . Scanalyzers . | . . . . . . . . . . . . . . . . . . Garrison Access . | . . . . . . . . . . . . . . . . . . Data Cores Recovered 3 | . . . . . . . 1 . . 1 . . . . 1 . . Used 1 | . . . . . . . . . . 1 . . . . . . . Hacking Detections 71 | . 7 . 11 . . . 9 1 . 15 4 9 . 6 4 4 1 Full Trace Events 11 | . . . 2 . . . 1 . . 2 1 4 . . . . 1 Feedback Events . | . . . . . . . . . . . . . . . . . . Feedback Blocked . | . . . . . . . . . . . . . . . . . . Robot Schematics Acquired . | . . . . . . . . . . . . . . . . . . Robots Built . | . . . . . . . . . . . . . . . . . . Authchips . | . . . . . . . . . . . . . . . . . . Time . | . . . . . . . . . . . . . . . . . . Total Robot Build Rating . | . . . . . . . . . . . . . . . . . . Part Schematics Acquired 1 | . . . . . . . . . . 1 . . . . . . . Parts Built 5 | . . . . . . . . . . 1 . 4 . . . . . Authchips . | . . . . . . . . . . . . . . . . . . Time 628 | . . . . . . . . . . 106 . 318 . 204 . . . Total Part Build Rating 30 | . . . . . . . . . . 6 . 24 . . . . . Part Studies Acquired . | . . . . . . . . . . . . . . . . . . Parts Repaired 14 | . 1 . 2 . . . . . . 1 . 3 . 1 . 6 . Time 745 | . 26 . 52 . . . . . . 86 . 182 . 51 . 348 . Parts Recycled . | . . . . . . . . . . . . . . . . . . Recycled Matter . | . . . . . . . . . . . . . . . . . . Retrieved Matter . | . . . . . . . . . . . . . . . . . . Retrieved Components . | . . . . . . . . . . . . . . . . . . Parts Scanalyzed 1 | . . . . . . . . . . 1 . . . . . . . Part Schematics Acquired 1 | . . . . . . . . . . 1 . . . . . . . Parts Damaged . | . . . . . . . . . . . . . . . . . . Bothacking | -11 -10 -10 -9 -9 -9 -8 -8 -7 -7 -7 -6 -5 -5 -5 -4 -3 -3 ------------ Run | Yrd Mat Min Mat Min Exi Min Mat Fac Was Fac Fac Fac Was Fac Fac Res Gar Used RIF Installer . | . . . . . . . . . . . . . . . . . . Robots Hacked 5 | . . . . . . . . . . . 5 . . . . . . Non-combat . | . . . . . . . . . . . . . . . . . . Combat 5 | . . . . . . . . . . . 5 . . . . . . Robot Hacks Applied . | . . . . . . . . . . . . . . . . . . Relay Couplers Released . | . . . . . . . . . . . . . . . . . . Fabnet Peak Effective % 3 | . . . . . . . . . . . 3 1 1 1 3 1 1 Autooverrided 5 | . . . . . . . . . . . 5 . . . . . . Robots Rewired 1 | . . . . . . . . . . . . . . 1 . . . Allies Hacked . | . . . . . . . . . . . . . . . . . . Hacks Repelled . | . . . . . . . . . . . . . . . . . . Allies | -11 -10 -10 -9 -9 -9 -8 -8 -7 -7 -7 -6 -5 -5 -5 -4 -3 -3 -------- Run | Yrd Mat Min Mat Min Exi Min Mat Fac Was Fac Fac Fac Was Fac Fac Res Gar Total Allies 27 | . . 3 . . . . . . 18 . 5 . . 1 . . . Largest Group 18 | . . 3 3 . . . . . 18 . 2 . . 1 . . . Highest-Rated Group 444 | . . 40 40 . . . . . 444 . 84 . . 12 . . . Highest-Rated Ally 47 | . . 16 16 . . . . . 35 . 47 . . 12 . . . Total Orders . | . . . . . . . . . . . . . . . . . . Ally Attacks 79 | . . . 39 . 24 . . . . . 13 . . 3 . . . Total Damage 2137 | . . . 346 . 1264 . . . . . 505 . . 22 . . . Kills 17 | . . . 8 . 5 . . . . . 4 . . . . . . Allies Corrupted . | . . . . . . . . . . . . . . . . . . Allies Melted . | . . . . . . . . . . . . . . . . . . Turrets Deployed 3 | . . . . . 3 . . . . . . . . . . . . Intel | -11 -10 -10 -9 -9 -9 -8 -8 -7 -7 -7 -6 -5 -5 -5 -4 -3 -3 ------- Run | Yrd Mat Min Mat Min Exi Min Mat Fac Was Fac Fac Fac Was Fac Fac Res Gar Active Infowar (turns) 2748 | 7 903 . . . . 108 478 . . . . 328 . . 313 550 61 Sensors 924 | . . . . . . . . . . . . . . . 313 550 61 Traps 328 | . . . . . . . . . . . . 328 . . . . . Seismic 1496 | 7 903 . . . . 108 478 . . . . . . . . . . ECM 1 | . . . . . . . 1 . . . . . . . . . . Robot Analysis Total . | . . . . . . . . . . . . . . . . . . Derelict Logs Recovered 2 | . . 1 . 1 . . . . . . . . . . . . . Drone Launches . | . . . . . . . . . . . . . . . . . . Drone Recoveries . | . . . . . . . . . . . . . . . . . . Exploration | -11 -10 -10 -9 -9 -9 -8 -8 -7 -7 -7 -6 -5 -5 -5 -4 -3 -3 ------------- Run | Yrd Mat Min Mat Min Exi Min Mat Fac Was Fac Fac Fac Was Fac Fac Res Gar Turns Passed 21810 | 120 1920 698 3109 855 1819 248 2037 591 1060 2374 4927 616 47 384 378 550 77 Spaces Moved 11369 | 63 905 402 1413 339 641 84 1305 344 535 1265 1544 760 82 536 642 381 128 Core 154 | 3 . . . . . . . . . . 6 142 . . . . 3 Treads 4938 | . 607 402 1413 339 641 84 . . 497 822 133 . . . . . . Legs . | . . . . . . . . . . . . . . . . . . Wheels 3893 | 60 298 . . . . . 1305 344 38 443 1405 . . . . . . Hover 2379 | . . . . . . . . . . . . 618 82 536 642 381 120 Flight 5 | . . . . . . . . . . . . . . . . . 5 Fastest Speed 30 | 50 100 160 160 160 240 240 115 160 160 160 105 48 48 33 43 40 30 Average Speed 142 | 97 144 160 194 238 245 240 131 160 160 160 163 50 48 40 52 43 40 Slowest Speed 1850 | 100 160 160 240 240 400 240 170 160 243 160 1850 150 51 48 56 56 50 Overloaded Moves 14 | . . . . . . . . . . . . . . 14 . . . Propulsion Burnouts . | . . . . . . . . . . . . . . . . . . Robots Hopped 1 | . . . . . . . . . . . . . . . . . 1 Potential Cave-ins . | . . . . . . . . . . . . . . . . . . Cave-ins Triggered . | . . . . . . . . . . . . . . . . . . Exploration Rate (%) 48 | 5 95 99 98 72 68 27 72 12 97 35 26 24 71 13 23 16 26 Regions Visited 17 Branch Regions 4 Pre-discovered Areas 7 | . 3 2 2 . . . . . . . . . . . . . . Known Exits Taken 7 | . . 1 1 1 . 1 1 . . . . . . . 1 1 . Unknown Exits Taken 6 | 1 1 . . . 1 . . . . 1 1 . . 1 . . . Scrap Searched 4 | . . 2 . 2 . . . . . . . . . . . . . Spaces Dug 51 | . 5 . 8 . . . 7 . . 5 1 . . 23 2 . . Terrain Destroyed 1003 | . 34 12 8 . 72 . 83 2 8 206 411 71 . 94 2 . . Melee 2 | . . . . . . . . . . . . . . . 2 . . Projectile 130 | . 1 . . . 2 . 83 2 8 18 16 . . . . . . AOE 871 | . 33 12 8 . 70 . . . . 188 395 71 . 94 . . . Terrain Rammed . | . . . . . . . . . . . . . . . . . . Walls Destroyed . | . . . . . . . . . . . . . . . . . . Machines Disabled . | . . . . . . . . . . . . . . . . . . Actions | -11 -10 -10 -9 -9 -9 -8 -8 -7 -7 -7 -6 -5 -5 -5 -4 -3 -3 --------- Run | Yrd Mat Min Mat Min Exi Min Mat Fac Was Fac Fac Fac Was Fac Fac Res Gar Total 16165 | 100 1350 447 1683 359 852 107 1658 388 750 1602 3511 988 87 697 675 758 153 Wait 3276 | 9 284 25 159 3 144 4 156 9 81 213 1465 195 1 132 20 356 20 Move 11351 | 62 904 401 1412 338 640 83 1304 344 534 1264 1543 760 81 535 641 381 124 Hop 1 | . . . . . . . . . . . . . . . . . 1 Pick Up 165 | 8 20 4 11 1 8 7 38 4 15 10 24 8 1 4 . 2 . Fast Attach 102 | 6 7 . 11 . 1 1 13 1 3 10 11 12 3 5 5 13 . Attach 94 | 1 2 . 5 2 14 . 2 2 1 6 54 1 . . . 2 2 Detach 54 | . 2 . 1 . 5 . 7 . . 4 32 2 . 1 . . . Swap 74 | . 16 4 14 . 5 . 7 2 3 3 15 1 . 4 . . . Drop 201 | 2 18 6 24 2 8 . 52 4 28 13 17 7 1 9 4 3 3 Fire 798 | 12 97 7 46 13 27 12 78 6 85 78 330 2 . 5 . . . Melee 7 | . . . . . . . . . . . . . . 1 5 1 . Ram 2 | . . . . . . . 1 . . . . . . . . . 1 Kick . | . . . . . . . . . . . . . . . . . . Crush 21 | . . . . . . . . . . 1 20 . . . . . . Escape Stasis 18 | . . . . . . . . 16 . . . . . . . . 2 Rewire 1 | . . . . . . . . . . . . . . 1 . . . Trap . | . . . . . . . . . . . . . . . . . . Miscellaneous . | . . . . . . . . . . . . . . . . . . Route ------- -11/Scrapyard -10/Materials (discovered 5 exits: *Mat x3 / *Min / Sub) -10/Mines (discovered 3 exits: *Mat x2 / Sub) -9/Materials (discovered 4 exits: *Mat x3 / *Min) -9/Mines (discovered 3 exits: *Mat x2 / *Exi) -9/Exiles (discovered 2 exits: [*Min x2]) -8/Mines -8/Materials (discovered 3 exits: *Fac x3) -7/Factory -7/Waste -7/Factory -6/Factory (discovered 2 exits: *Fac x2) -5/Factory -5/Waste -5/Factory -4/Factory (discovered 4 exits: *Res x4) -3/Research -3/Garrison (discovered 1 exit: *Res) History --------- Turn | Location | Event 30 | -11/Scrapyard | Discovered new exit (range 16) 121 | -11/Scrapyard | Entered Materials 303 | -10/Materials | Build established: Mutant 462 | -10/Materials | Repaired Lgt. Treads 539 | -10/Materials | Discovered new exit (range 15) 556 | -10/Materials | Core integrity fell below 50% 765 | -10/Materials | Discovered new exit (range 11) 996 | -10/Materials | Learned location of 2 exits from Mines 1071 | -10/Materials | Identified exit to Materials 1136 | -10/Materials | Identified exit to Subcaves 1239 | -10/Materials | Learned Storage trap positions 1274 | -10/Materials | Learned location of Mines (-10) 1317 | -10/Materials | Learned 4 Subcaves zone layouts 2041 | -10/Materials | Entered Mines 2046 | -10/Mines | Learned location of Storage (-7) 2143 | -10/Mines | Met a Derelict shopkeep closing up shop 2369 | -10/Mines | Learned location of Zion (-6) 2553 | -10/Mines | Assisted by bots powering up and referring to "LRC-V3" 2739 | -10/Mines | Entered Materials 2739 | -9/Materials | Accompanied by 3 allies 2739 | -9/Materials | Evolved 2 slots: Utility x1, Weapon x1 2740 | -9/Materials | Identified exit to Materials 3048 | -9/Materials | Build established: Tank 3456 | -9/Materials | Discovered new exit (range 16) 4147 | -9/Materials | Repaired Lgt. Armor Plating 4175 | -9/Materials | Repaired Heat Sink 5233 | -9/Materials | Identified exit to Mines 5305 | -9/Materials | Learned 2 Materials zone layouts 5420 | -9/Materials | Learned 4 Recycling zone layouts 5578 | -9/Materials | Learned 2 Materials zone layouts 5635 | -9/Materials | Learned location of 1 exit from Storage 5848 | -9/Materials | Entered Mines 5850 | -9/Mines | Identified exit to Exiles 6655 | -9/Mines | Learned 2 Materials zone layouts 6691 | -9/Mines | Deemed a non-threat by the Exiles lab entrance 6703 | -9/Mines | Entered Exiles 6735 | -9/Exiles | Discovered new exit (range 15) 6763 | -9/Exiles | Met 8R-AWN 6804 | -9/Exiles | Met EX-HEX 6869 | -9/Exiles | Met EX-BIN 6895 | -9/Exiles | Aligned with FarCom system 6898 | -9/Exiles | Given EX-Vault access code 6953 | -9/Exiles | Opened EX-Vault 6980 | -9/Exiles | Found Firepult 6997 | -9/Exiles | Found Deploy-a-Sentry 7001 | -9/Exiles | Found Deploy-a-Sentry 7005 | -9/Exiles | Found Deploy-a-Sentry 7063 | -9/Exiles | Warned to stay clear of 0b10 Research branches 7298 | -9/Exiles | Met EX-DEC 7408 | -9/Exiles | Attacked by the Exiles 7450 | -9/Exiles | Discovered new exit (range 10) 7453 | -9/Exiles | DAS Turret deployed 7456 | -9/Exiles | DAS Turret deployed 7457 | -9/Exiles | DAS Turret deployed 7562 | -9/Exiles | Core integrity fell below 50% 7584 | -9/Exiles | Destroyed 8R-AWN 7900 | -9/Exiles | Lost 6 parts (2n3u1w) 8034 | -9/Exiles | Found XL Autogun Array 8076 | -9/Exiles | Build established: Mutant 8522 | -9/Exiles | Left Exiles lab with XL Autogun Array 8522 | -9/Exiles | Entered Mines 8725 | -8/Mines | Discovered exit to Materials (range 12) 8770 | -8/Mines | Entered Materials 8770 | -8/Materials | Evolved 2 slots: Propulsion x1, Weapon x1 8771 | -8/Materials | Identified exit to Factory 9099 | -8/Materials | Garrison activated, responded to threat 9225 | -8/Materials | Build established: Tank 10743 | -8/Materials | Discovered exit to Factory (range 7) 10770 | -8/Materials | First assault squad dispatched 10807 | -8/Materials | Entered Factory 10807 | -7/Factory | Evolved 2 slots: Propulsion x1, Utility x1 10808 | -7/Factory | Identified exit to Storage 11130 | -7/Factory | Garrison activated, responded to threat 11398 | -7/Factory | Sucked down chute 11398 | -7/Factory | Entered Waste 11410 | -7/Waste | Spotted C-40 Crusher 11425 | -7/Waste | Destroyed C-40 Crusher 11503 | -7/Waste | Spotted C-40 Crusher 11506 | -7/Waste | Spotted C-40 Crusher 11511 | -7/Waste | Destroyed C-40 Crusher 11514 | -7/Waste | Spotted C-40 Crusher 11516 | -7/Waste | Destroyed C-40 Crusher 11527 | -7/Waste | Destroyed C-40 Crusher 11580 | -7/Waste | Found Damper Plating 11586 | -7/Waste | Found Damper Plating 11615 | -7/Waste | Spotted C-40 Crusher 11628 | -7/Waste | Destroyed C-40 Crusher 11631 | -7/Waste | Spotted C-40 Crusher 11639 | -7/Waste | Destroyed C-40 Crusher 11674 | -7/Waste | Found Damper Plating 11772 | -7/Waste | Discovered new exit (range 15) 11846 | -7/Waste | Build established: Scavenger-Tank 11873 | -7/Waste | Warlord forces began an assault 12120 | -7/Waste | Found Damper Plating 12229 | -7/Waste | Lost 4 allies 12252 | -7/Waste | Murdered 14 allies 12458 | -7/Waste | Entered Factory 12791 | -7/Factory | Build established: Tank 13002 | -7/Factory | Garrison activated, responded to threat 13654 | -7/Factory | Allied Derelicts emerged from ambush trap array 13818 | -7/Factory | Repaired Broken Micro-nuke Launcher 14425 | -7/Factory | Fabricated Hvy. Treads? 14732 | -7/Factory | Garrison activated, responded to threat 14749 | -7/Factory | Discovered new exit (range 15) 14794 | -7/Factory | Destroyed 11 combat bots 14832 | -7/Factory | Entered another Factory area 14832 | -6/Factory | Evolved 2 slots: Propulsion x1, Utility x1 14835 | -6/Factory | Discovered new exit (range 10) 15082 | -6/Factory | Build established: Scavenger-Tank 15335 | -6/Factory | Lost 3 parts (2n1w) 15477 | -6/Factory | Build established: Mutant 15848 | -6/Factory | Build established: Scavenger-Tank 16404 | -6/Factory | Build established: Tank 16894 | -6/Factory | Build established: Scavenger-Tank 17246 | -6/Factory | Found Prototype Launcher 17246 | -6/Factory | Identified Rocket Array 17270 | -6/Factory | Found Rocket Array 17272 | -6/Factory | Found Rocket Array 17336 | -6/Factory | Discovered new exit (range 12) 18284 | -6/Factory | Build established: Tank 18332 | -6/Factory | First assault squad dispatched 18619 | -6/Factory | Build established: Gunner 18628 | -6/Factory | Lost 3 parts (1p2w) 19477 | -6/Factory | High security lockdown imminent 19557 | -6/Factory | High security lockdown engaged 19564 | -6/Factory | Core integrity fell below 50% 19594 | -6/Factory | Lost 3 parts (1n1u1w) 19711 | -6/Factory | Build established: Mutant 19751 | -6/Factory | P-60 Hacker assimilated allied G-67 Veteran 19759 | -6/Factory | Entered another Factory area 19759 | -5/Factory | Evolved 2 slots: Power x1, Propulsion x1 19949 | -5/Factory | Repaired Micro-nuke Launcher 20000 | -5/Factory | Repaired Lgt. Fission Core 20042 | -5/Factory | Build established: Hacker-Mutant 20059 | -5/Factory | First assault squad dispatched 20071 | -5/Factory | Repaired Mni. Assault Cannon 20180 | -5/Factory | Fabricated Hvy. Treads? 20205 | -5/Factory | Fabricated Hvy. Treads? 20242 | -5/Factory | Fabricated Hvy. Treads? 20257 | -5/Factory | Fabricated Hvy. Treads? 20334 | -5/Factory | Destroyed 8 combat bots 20373 | -5/Factory | Discovered new exit (range 15) 20375 | -5/Factory | Sucked down chute 20375 | -5/Factory | Entered Waste 20380 | -5/Waste | Spotted C-40 Crusher 20385 | -5/Waste | Spotted C-40 Crusher 20386 | -5/Waste | Spotted C-40 Crusher 20391 | -5/Waste | Spotted C-40 Crusher 20398 | -5/Waste | Spotted C-40 Crusher 20403 | -5/Waste | Spotted C-40 Crusher 20415 | -5/Waste | Discovered new exit (range 11) 20422 | -5/Waste | Entered Factory 20484 | -5/Factory | Repaired Broken Cmb. Linear Gravjet 20546 | -5/Factory | Spotted B-75 Beast 20722 | -5/Factory | First assault squad dispatched 20785 | -5/Factory | Discovered new exit (range 3) 20806 | -5/Factory | Entered another Factory area 20806 | -4/Factory | Evolved 2 slots: Propulsion x1, Utility x1 20807 | -4/Factory | Identified exit to DSF 20962 | -4/Factory | Identified exit to Research 21184 | -4/Factory | Entered Research 21184 | -3/Research | Evolved 2 slots: Utility x2 21290 | -3/Research | Repaired Antigrav System 21353 | -3/Research | Repaired Micro-nuke Launcher 21409 | -3/Research | Repaired Linear Gravjet 21464 | -3/Research | Repaired Lgt. Fission Core 21539 | -3/Research | Repaired Cmb. Linear Gravjet 21591 | -3/Research | Repaired Gravmag Array 21734 | -3/Research | Identified exit to Garrison 21734 | -3/Research | Entered Garrison 21759 | -3/Garrison | Spotted B-86 Titan 21759 | -3/Garrison | Triggered checkpoint 21762 | -3/Garrison | Triggered checkpoint 21777 | -3/Garrison | Discovered new exit (range 10) 21780 | -3/Garrison | Identified exit to Research 21781 | -3/Garrison | Attempted to access garrison exit controls, blocked by remote lockdown 21806 | -3/Garrison | Core integrity fell below 50% 21811 | -3/Garrison | Core integrity fell below 20% 21811 | -3/Garrison | Destroyed by G-67 Veteran with Plasma Rifle Last Messages --------------- 21791_ C-45 Heavy ARC bursts open, deploying its payload. 21791_ G-73 Enforcer unfolds itself. 21791_ G-67 Veteran unfolds itself. 21793_ Gravmag Array destroyed. 21794_ Dropped Imp. Field Recycling Unit. 21794_ Dropped Point Defense System. 21794_ Broken Com. HERF Cannon destroyed. 21794_ Gravmag Array destroyed. 21795_ Adv. Sensor Array destroyed. 21797_ Imp. System Shield destroyed. 21797_ Dropped Thunder Hammer. 21798_ Hacking Suite destroyed. 21798_ Adv. Signal Interpreter destroyed. 21802_ Imp. Surge Thruster destroyed. 21803_ Slammed into S-43 Plague. 21805_ Cmb. Linear Gravjet destroyed. 21807_ Q-thruster destroyed. 21808_ Penetrated by Slug. 21808_ System Shield destroyed. Map ----- +----------------------------------------------------+ | ?????????????????????????????????????????????????? | | ?????????????????????????????????????????????????? | | ???????????????????????????????????????########""" | | ??????????????????????????????????????? | | ???????????????????????????????????????? | | ???????????????????????????????????????? | | ?????????????????????????????????????????# ?# | | ?????????????????????????????????????????# ## | | ?????????????????????????????????????????" | | ?????????????????????????????????????????" | | ?????????????????????????????????????????" | | ?????????????????????????????????????????" | | ?????????????????????????????????????????# ## | | ?????????????????????????????????????????# #" | | ?????????????????????????????????????????# | | ?????????????????????????????????????????# | | ?????????????????????????????????????????# | | ?????????????????????????????????????????# "# | | ?????????????????????????????????????????# ## | | ?????????????????????????????????????????# ##### | | ?????????????????????????????????????????# #???? | | ?????????????????????????????????????????# #???? | | ?????????????????????????????????????????# ##??? | | ?????????????????????????????????????????# T#??? | | ?????????################################# ##??? | | ?????????# ssg@g BB #???? | | ?????????# ! g ssgg Y BB #???? | | ?????????# /! g g g #???? | | ?????????# < #####g####### ##### ###########???? | | ?????????# #???#"#?????# #???# #?????????????? | | ?????????#####???# #?????" #???# "?????????????? | | ?????????????????# ?????" #???# "?????????????? | | ?????????????????###?????" #???# "?????????????? | | ?????????????????????????# #???# #?????????????? | | ?????????????????????????# #???# #?????????????? | | ?????????????????????????# #???# #?????????????? | | ?????????????????????????# #???# #?????????????? | | ?????????????????????????# #???# #?????????????? | | ????????????????????????? #???# ?????????????? | | ?????????????????????????# #???# #?????????????? | | ?????????????????????????? ????? ??????????????? | | ?????????????????????????? ????? ??????????????? | | ?????????????????????????? ????? ??????????????? | | ?????????????????????????????????????????????????? | | ?????????????????????????????????????????????????? | | ?????????????????????????????????????????????????? | | ?????????????????????????????????????????????????? | | ?????????????????????????????????????????????????? | | ?????????????????????????????????????????????????? | | ?????????????????????????????????????????????????? | +----------------------------------------------------+ Best States ------------- Heat Dissipation 64 Coolant Potential 50 Energy Generation 28 Energy Capacity 325 Matter Stores 300 Matter Capacity 500 Sight Range 16 Robot Scan Range 16 Terrain Scan Density 10 Power Amplification 40 Corruption Block 8 Armor Coverage 3200 Resistance: KI 20 Resistance: EM 90 Point Defense Rating 80 Evasion (%) 57 Target Analysis 6 Recoil Reduction 4 Offensive Hacking 10 Defensive Hacking 24 Item Schematics ----------------- Hvy. Treads | -7/Factory | Scanalyzed Robot Schematics ------------------ None Fabricated ------------ Hvy. Treads | x1 | -7/Factory Hvy. Treads | x1 | -5/Factory Hvy. Treads | x1 | -5/Factory Hvy. Treads | x1 | -5/Factory Hvy. Treads | x1 | -5/Factory Repaired ---------- Lgt. Treads | 28% | -10/Materials Lgt. Armor Plating | 63% | -9/Materials Heat Sink | 70% | -9/Materials Micro-nuke Launcher | 16% | -7/Factory | Broken Micro-nuke Launcher | 7% | -5/Factory Lgt. Fission Core | 15% | -5/Factory Mni. Assault Cannon | 72% | -5/Factory Cmb. Linear Gravjet | 50% | -5/Factory | Broken Antigrav System | 18% | -3/Research Micro-nuke Launcher | 40% | -3/Research Linear Gravjet | 23% | -3/Research Lgt. Fission Core | 1% | -3/Research Cmb. Linear Gravjet | 53% | -3/Research Gravmag Array | 57% | -3/Research Studied --------- None Alien Tech Used ----------------- None Achievements -------------- Construction Begets Destruction Gun Specialist Heavy Suspicion Immobile And Lovin' It Let Me Out Of Here Overwhelming Professional Mechanic Throw Away The Key Challenges ------------ None Game ------ Seed SpreadAssaultFilter Manual? 0 Play Time 03:45:40 Cumulative 143.1 hours Start 2025.10.25 @ 15:46:48 End 2025.10.25 @ 19:32:11 Sessions 1 Manual Loads 0 Difficulty Rogue Special Mode None Game No. 101 Rogue 101 Adventurer 0 Explorer 0 Win Type - Total 2 Types 2/0/0/0/0/0/0/0/0/0 Lore% 43 Gallery% 49 Achievement% 31 Wizard Run 0 Options --------- Layout 1 ASCII 0 Keyboard 1 Movement Vi Keybinds 1 Fullscreen 1 Font 32/SmallcapsGlow Map View 50x35 Zoom Use 0% Tactical HUD 1 Map Filters NONE Filters NONE Steam 1 RUN: 46adbd33-baa0-48ae-b432-edd77a3c993c